Workbook

Sheet Permanent portfolio Lumpsum
A1: The Permanent Portfolio Simulator: Indian Edition for Lump sum investments with annual rebalancing | K1: Annual | M1: Permanent portfolio of a lumpsum investment with annual rebalancing | Z1: Permanent portfolio of a lumpsum investment with annual rebalancing
A2: Enter no of years (max 32) | D2: 25 | G2: Enter data only in green cells | K2: CAGR of | M2: Year of | N2: Year | O2: Sensex | P2: Investment | Q2: Total | S2: FD | T2: Monthly | U2: Total | W2: Asset Allocation | Z2: Year of | AA2: Year | AB2: Gold | AC2: Investment | AD2: Total | AF2: Liquid | AG2: Monthly | AH2: Total | AJ2: Asset Allocation
A3: Choose a starting year between | D3: 1979 | E3: and | F3: =2012-time1+1 -> 1988 | K3: permanent | M3: return | O3: return | S3: return | W3: After investment | Z3: return | AB3: return | AF3: return | AJ3: After investment
A4: Starting year | C4: 1988 | K4: portfolio | W4: Equity | X4: Debt | AJ4: Equity | AK4: Debt
D5: Lumpsum investment | F5: 100000 | K5: =IF(N5=0,"",((Q5+U5+AD5+AH5)/cont1)^(1/N5)-1) ->  | M5: 1979 | N5: =IF(S3=start-1+time1,0,IF(N3<>0,N3+1,IF(M5=start,1,0))) -> 0 | O5: 0.29 | P5: =IF(S3=start-1+time1,0,IF(M5=start,cont1*eqper,0)) -> 0 | Q5: =IF(N5=0,0,(P5+eqper*(Q3+U3))*(1+O5)) -> 0 | R5: =IF(N5=time1,Q5,0) -> 0 | S5: 0.07 | T5: =IF(S3=start-1+time1,0,IF(M5=start,cont1*bondper,0)) -> 0 | U5: =IF(N5=0,0,(T5+bondper*(Q3+U3))*(1+S5)) -> 0 | V5: =IF(N5=time1,U5,0) -> 0 | W5: =IF(N5=0,0,Q5/(Q5+U5+AD5+AH5)) -> 0 | X5: =IF(N5=0,0,U5/(Q5+U5+AD5+AH5)) -> 0 | Z5: 1979 | AA5: =IF(AF3=start-1+time1,0,IF(AA3<>0,AA3+1,IF(Z5=start,1,0))) -> 0 | AB5: 0.46 | AC5: =IF(AF3=start-1+time1,0,IF(Z5=start,cont1*eqper,0)) -> 0 | AD5: =IF(AA5=0,0,(AC5+eqper*(AD3+AH3))*(1+AB5)) -> 0 | AE5: =IF(AA5=time1,AD5,0) -> 0 | AF5: =AQ5+liqpl -> 0.05 | AG5: =IF(AF3=start-1+time1,0,IF(Z5=start,cont1*bondper,0)) -> 0 | AH5: =IF(AA5=0,0,(AG5+bondper*(AD3+AH3))*(1+AF5)) -> 0 | AI5: =IF(AA5=time1,AH5,0) -> 0 | AJ5: =IF(AA5=0,0,AD5/(Q5+U5+AD5+AH5)) -> 0 | AK5: =IF(AA5=0,0,AH5/(Q5+U5+AD5+AH5)) -> 0 | AQ5: 0.05
M6: =M5+1 -> 1980 | N6: =IF(M5=start-1+time1,0,IF(N5<>0,N5+1,IF(M6=start,1,0))) -> 0 | O6: 0.3410852713 | P6: =IF(S5=start-1+time1,0,IF(M6=start,cont1*eqper,0)) -> 0 | Q6: =IF(N6=0,0,(P6+eqper*(Q5+U5+AD5+AH5))*(1+O6)) -> 0 | R6: 0 | S6: 0.075 | T6: =IF(S5=start-1+time1,0,IF(M6=start,cont1*bondper,0)) -> 0 | U6: =IF(N6=0,0,(T6+bondper*(Q5+U5+AD5+AH5))*(1+S6)) -> 0 | V6: 0 | W6: 0 | X6: 0 | Z6: =Z5+1 -> 1980 | AA6: =IF(Z5=start-1+time1,0,IF(AA5<>0,AA5+1,IF(Z6=start,1,0))) -> 0 | AB6: 0.31 | AC6: =IF(AF5=start-1+time1,0,IF(Z6=start,cont1*eqper,0)) -> 0 | AD6: =IF(AA6=0,0,(AC6+gper*(Q5+U5+AD5+AH5))*(1+AB6)) -> 0 | AE6: 0 | AF6: 0.05 | AG6: =IF(AF5=start-1+time1,0,IF(Z6=start,cont1*bondper,0)) -> 0 | AH6: =IF(AA6=0,0,(AG6+lper*(Q5+U5+AD5+AH5))*(1+AF6)) -> 0 | AI6: 0 | AJ6: 0 | AK6: 0 | AQ6: 0.05
A7: The Permanent portfolio assest allocation | M7: =M6+1 -> 1981 | N7: 0 | O7: 0.2601156069 | P7: 0 | Q7: 0 | R7: 0 | S7: 0.08 | T7: 0 | U7: 0 | V7: 0 | W7: 0 | X7: 0 | Z7: =Z6+1 -> 1981 | AA7: 0 | AB7: 0.13 | AC7: 0 | AD7: 0 | AE7: 0 | AF7: 0.05 | AG7: 0 | AH7: 0 | AI7: 0 | AJ7: 0 | AK7: 0 | AQ7: 0.05
A8: % in equities | B8: 0.25 | C8: % in long term debt (FDs) | F8: 0.25 | M8: 1982 | N8: 0 | O8: -0.02752293578 | P8: 0 | Q8: 0 | R8: 0 | S8: 0.08 | T8: 0 | U8: 0 | V8: 0 | W8: 0 | X8: 0 | Z8: 1982 | AA8: 0 | AB8: 0 | AC8: 0 | AD8: 0 | AE8: 0 | AF8: 0.05 | AG8: 0 | AH8: 0 | AI8: 0 | AJ8: 0 | AK8: 0 | AQ8: 0.05
A9: % in gold | B9: 0.25 | C9: % in short term (liquid) debt (SB acc!) | F9: 0.25 | M9: 1983 | N9: 0 | O9: 0.1556603774 | P9: 0 | Q9: 0 | R9: 0 | S9: 0.08 | T9: 0 | U9: 0 | V9: 0 | W9: 0 | X9: 0 | Z9: 1983 | AA9: 0 | AB9: 0.08 | AC9: 0 | AD9: 0 | AE9: 0 | AF9: 0.05 | AG9: 0 | AH9: 0 | AI9: 0 | AJ9: 0 | AK9: 0 | AQ9: 0.05
A10: Total must be 100% other wise you will get weird results! | M10: 1984 | N10: 0 | O10: 0.4448979592 | P10: 0 | Q10: 0 | R10: 0 | S10: 0.08 | T10: 0 | U10: 0 | V10: 0 | W10: 0 | X10: 0 | Z10: 1984 | AA10: 0 | AB10: 0.07 | AC10: 0 | AD10: 0 | AE10: 0 | AF10: 0.05 | AG10: 0 | AH10: 0 | AI10: 0 | AJ10: 0 | AK10: 0 | AQ10: 0.05
A11: If you wish enhance SB acc returns by a small amount to make it resemble a liquid fund | M11: 1985 | N11: 0 | O11: 0.6214689266 | P11: 0 | Q11: 0 | R11: 0 | S11: 0.085 | T11: 0 | U11: 0 | V11: 0 | W11: 0 | X11: 0 | Z11: 1985 | AA11: 0 | AB11: 0.07 | AC11: 0 | AD11: 0 | AE11: 0 | AF11: 0.05 | AG11: 0 | AH11: 0 | AI11: 0 | AJ11: 0 | AK11: 0 | AQ11: 0.05
A12: enter the incremental return here | M12: 1986 | N12: 0 | O12: -0.1114982578 | P12: 0 | Q12: 0 | R12: 0 | S12: 0.085 | T12: 0 | U12: 0 | V12: 0 | W12: 0 | X12: 0 | Z12: 1986 | AA12: 0 | AB12: 0.09 | AC12: 0 | AD12: 0 | AE12: 0 | AF12: 0.05 | AG12: 0 | AH12: 0 | AI12: 0 | AJ12: 0 | AK12: 0 | AQ12: 0.05
A13: Results | M13: 1987 | N13: 0 | O13: -0.2196078431 | P13: 0 | Q13: 0 | R13: 0 | S13: 0.09 | T13: 0 | U13: 0 | V13: 0 | W13: 0 | X13: 0 | Z13: 1987 | AA13: 0 | AB13: 0.33 | AC13: 0 | AD13: 0 | AE13: 0 | AF13: 0.05 | AG13: 0 | AH13: 0 | AI13: 0 | AJ13: 0 | AK13: =IF(AA13=0,0,AH13/(Q13+U13+AD13+AH13)) -> 0 | AQ13: 0.05
A14: Start Year | B14: Equity corpus | C14: Debt Corpus | D14: Gold Corpus | E14: liq debt corpus | F14: Total corpus | G14: Difference between | K14: 0.2409924623 | M14: 1988 | N14: 1 | O14: 0.7939698492 | P14: 25000 | Q14: 44849.24623 | R14: 0 | S14: 0.09 | T14: 25000 | U14: 27250 | V14: 0 | W14: 0.3613982163 | X14: 0.2195823168 | Z14: 1988 | AA14: 1 | AB14: 0.03 | AC14: 25000 | AD14: 25750 | AE14: 0 | AF14: 0.05 | AG14: 25000 | AH14: 26250 | AI14: 0 | AJ14: 0.2074952168 | AK14: 0.2115242501 | AQ14: 0.05
A15: =start -> 1988 | B15: =MAX(R3:R58) -> 376314.9685 | C15: =MAX(V3:V58) -> 379019.4014 | D15: =MAX(AE3:AE58) -> 396405.6125 | E15: =MAX(AI3:AI38) -> 361633.1903 | F15: =B15+C15+D15+E15 -> 1513373.173 | G15: AM and GM | K15: 0.1488015839 | M15: 1989 | N15: 2 | O15: 0.09383753501 | P15: 0 | Q15: 33936.1034 | R15: 0 | S15: 0.09 | T15: 0 | U15: 33817.0446 | V15: 0 | W15: 0.257141352 | X15: 0.2562392172 | Z15: 1989 | AA15: 2 | AB15: 0.02 | AC15: 0 | AD15: 31645.30779 | AE15: 0 | AF15: 0.05 | AG15: 0 | AH15: 32576.05214 | AI15: 0 | AJ15: 0.2397834876 | AK15: 0.2468359432 | AQ15: 0.05
B16: % Equity | C16: %Debt | D16: % Gold | E16: %liq debt | F16: CAGR | K16: 0.1579216757 | M16: 1990 | N16: 3 | O16: 0.4955185659 | P16: 0 | Q16: 49342.58171 | R16: 0 | S16: 0.09 | T16: 0 | U16: 35963.05341 | V16: 0 | W16: 0.3178222644 | X16: 0.2316429071 | Z16: 1990 | AA16: 3 | AB16: 0.07 | AC16: 0 | AD16: 35303.18087 | AE16: 0 | AF16: 0.05 | AG16: 0 | AH16: 34643.30833 | AI16: 0 | AJ16: 0.2273925785 | AK16: 0.22314225 | AQ16: 0.05
B17: =B15/F15 -> 0.2486597326 | C17: =C15/F15 -> 0.2504467558 | D17: =D15/F15 -> 0.2619351391 | E17: =E15/F15 -> 0.2389583725 | F17: =(F15/cont1)^(1/time1)-1 -> 0.114802262 | G17: =AVERAGE(K4:K38)-F17 -> 0.02833034575 | K17: 0.2879099361 | M17: 1991 | N17: 4 | O17: 2.668664384 | P17: 0 | Q17: 142391.9847 | R17: 0 | S17: 0.12 | T17: 0 | U17: 43470.59481 | V17: 0 | W17: 0.5175395794 | X17: 0.1579987342 | Z17: 1991 | AA17: 4 | AB17: 0.25 | AC17: 0 | AD17: 48516.28885 | AE17: 0 | AF17: 0.05 | AG17: 0 | AH17: 40753.68263 | AI17: 0 | AJ17: 0.176337873 | AK17: 0.1481238133 | AQ17: 0.05
B18: Final asset allocation | K18: 0.2022926991 | M18: 1992 | N18: 5 | O18: -0.4676779463 | P18: 0 | Q18: 36614.78115 | R18: 0 | S18: 0.11 | T18: 0 | U18: 76349.28291 | V18: 0 | W18: 0.1457489361 | X18: 0.3039162439 | Z18: 1992 | AA18: 5 | AB18: -0.05 | AC18: 0 | AD18: 65343.98087 | AE18: 0 | AF18: 0.06 | AG18: 0 | AH18: 72910.12602 | AI18: 0 | AJ18: 0.260108497 | AK18: 0.290226323 | AQ18: 0.06
K19: 0.2067331102 | M19: 1993 | N19: 6 | O19: 0.6567295046 | P19: 0 | Q19: 104050.139 | R19: 0 | S19: 0.1 | T19: 0 | U19: 69084.99701 | V19: 0 | W19: 0.3369576266 | X19: 0.2237259542 | Z19: 1993 | AA19: 6 | AB19: 0.1 | AC19: 0 | AD19: 69084.99701 | AE19: 0 | AF19: 0.06 | AG19: 0 | AH19: 66572.8153 | AI19: 0 | AJ19: 0.2237259542 | AK19: 0.215590465 | AQ19: 0.06
K20: 0.1767695762 | M20: 1994 | N20: 7 | O20: -0.1370732998 | P20: 0 | Q20: 66616.41998 | R20: 0 | S20: 0.11 | T20: 0 | U20: 85690.04315 | V20: 0 | W20: 0.2131774521 | X20: 0.2742144515 | Z20: 1994 | AA20: 7 | AB20: 0.03 | AC20: 0 | AD20: 79514.18419 | AE20: 0 | AF20: 0.045 | AG20: 0 | AH20: 80672.15774 | AI20: 0 | AJ20: 0.2544512478 | AK20: 0.2581568485 | AQ20: 0.045
A21: Click on the macro to find out the % difference | K21: 0.1620957273 | M21: 1995 | N21: 8 | O21: 0.03250536645 | P21: 0 | Q21: 80662.62455 | R21: 0 | S21: 0.12 | T21: 0 | U21: 87497.98542 | V21: 0 | W21: 0.2425141668 | X21: 0.2630648475 | Z21: 1995 | AA21: 8 | AB21: 0.06 | AC21: 0 | AD21: 82810.59334 | AE21: 0 | AF21: 0.045 | AG21: 0 | AH21: 81638.74532 | AI21: 0 | AJ21: 0.2489720878 | AK21: 0.2454488979 | AQ21: 0.045
A22: between the two corpuses for all possible | K22: 0.1482553551 | M22: 1996 | N22: 9 | O22: -0.001782001782 | P22: 0 | Q22: 83004.30928 | R22: 0 | S22: 0.11 | T22: 0 | U22: 92299.26074 | V22: 0 | W22: 0.2391962267 | X22: 0.2659817916 | Z22: 1996 | AA22: 9 | AB22: 0.02 | AC22: 0 | AD22: 84815.5369 | AE22: 0 | AF22: 0.045 | AG22: 0 | AH22: 86894.34908 | AI22: 0 | AJ22: 0.2444157004 | AK22: 0.2504062813 | AQ22: 0.045
A23: investment durations between | K23: 0.1371673601 | M23: 1997 | N23: 10 | O23: 0.1582862243 | P23: 0 | Q23: 100485.2264 | R23: 0 | S23: 0.105 | T23: 0 | U23: 95862.46722 | V23: 0 | W23: 0.2778806833 | X23: 0.2650969584 | Z23: 1997 | AA23: 10 | AB23: -0.14 | AC23: 0 | AD23: 74607.89304 | AE23: 0 | AF23: 0.045 | AG23: 0 | AH23: 90657.26538 | AI23: 0 | AJ23: 0.2063198048 | AK23: 0.2507025535 | AQ23: 0.045
A24: =D3 -> 1979 | C24: =F3 -> 1988 | K24: 0.1258735866 | M24: 1998 | N24: 11 | O24: -0.03930131004 | P24: 0 | Q24: 86850.24832 | R24: 0 | S24: 0.09 | T24: 0 | U24: 98539.50219 | V24: 0 | W24: 0.2357138648 | X24: 0.2674388081 | Z24: 1998 | AA24: 11 | AB24: -0.02 | AC24: 0 | AD24: 88595.14876 | AE24: 0 | AF24: 0.045 | AG24: 0 | AH24: 94471.35761 | AI24: 0 | AJ24: 0.2404495706 | AK24: 0.2563977564 | AQ24: 0.045
K25: 0.1257416563 | M25: 1999 | N25: 12 | O25: 0.3371657754 | P25: 0 | Q25: 123171.7741 | R25: 0 | S25: 0.085 | T25: 0 | U25: 99943.75968 | V25: 0 | W25: 0.29733522 | X25: 0.2412630653 | Z25: 1999 | AA25: 12 | AB25: 0.03 | AC25: 0 | AD25: 94877.48614 | AE25: 0 | AF25: 0.045 | AG25: 0 | AH25: 96259.19711 | AI25: 0 | AJ25: 0.2290331403 | AK25: 0.2323685744 | AQ25: 0.045
A26: Start Year | B26: Final Corpus | C26: CAGR | D26: For a duration of | F26: =time1 -> 25 | G26: years | K26: 0.1126040037 | M26: 2000 | N26: 13 | O26: -0.2793441312 | P26: 0 | Q26: 74633.32284 | R26: 0 | S26: 0.085 | T26: 0 | U26: 112365.9139 | V26: 0 | W26: 0.1864252518 | X26: 0.2806768209 | Z26: 2000 | AA26: 13 | AB26: 0.02 | AC26: 0 | AD26: 105634.3153 | AE26: 0 | AF26: 0.04 | AG26: 0 | AH26: 107705.5764 | AI26: 0 | AJ26: 0.2638620805 | AK26: 0.2690358468 | AQ26: 0.04
A27: 1979 | B27: 1480776.836 | C27: =IF(A27="","",(B27/cont1)^(1/time1)-1) -> 0.1138317272 | D27: the average CAGR is | F27: =SUM(C27:C61)/(C24-A24+1) -> 0.1122235998 | K27: 0.1060581461 | M27: 2001 | N27: 14 | O27: -0.03745837958 | P27: 0 | Q27: 96335.76836 | R27: 0 | S27: 0.075 | T27: 0 | U27: 107591.1408 | V27: 0 | W27: 0.2349071003 | X27: 0.2623524297 | Z27: 2001 | AA27: 14 | AB27: 0.02 | AC27: 0 | AD27: 102086.4778 | AE27: 0 | AF27: 0.04 | AG27: 0 | AH27: 104088.1734 | AI27: 0 | AJ27: 0.2489297473 | AK27: 0.2538107227 | AQ27: 0.04
A28: 1980 | B28: 1313187.777 | C28: 0.108493302 | D28: Variation in the average CAGR is | G28: =STDEV(C27:C61) -> 0.002253420247 | K28: 0.1008427182 | M28: 2002 | N28: 15 | O28: -0.1210723551 | P28: 0 | Q28: 90112.39964 | R28: 0 | S28: 0.0425 | T28: 0 | U28: 106882.7192 | V28: 0 | W28: 0.2132580554 | X28: 0.2529463307 | Z28: 2002 | AA28: 15 | AB28: 0.16 | AC28: 0 | AD28: 118929.4525 | AE28: 0 | AF28: 0.04 | AG28: 0 | AH28: 106626.4057 | AI28: 0 | AJ28: 0.2814558692 | AK28: 0.2523397448 | AQ28: 0.04
A29: 1981 | B29: 1361625.898 | C29: 0.1101005354 | K29: 0.1093243076 | M29: 2003 | N29: 16 | O29: 0.8337159724 | P29: 0 | Q29: 193709.6189 | R29: 0 | S29: 0.04 | T29: 0 | U29: 109863.254 | V29: 0 | W29: 0.3683110229 | X29: 0.2088892007 | Z29: 2003 | AA29: 16 | AB29: 0.07 | AC29: 0 | AD29: 113032.3863 | AE29: 0 | AF29: 0.035 | AG29: 0 | AH29: 109335.0653 | AI29: 0 | AJ29: 0.2149148507 | AK29: 0.2078849257 | AQ29: 0.035
A30: 1982 | B30: 1388360.571 | C30: 0.1109642678 | K30: 0.1075598792 | M30: 2004 | N30: 17 | O30: 0.1613307101 | P30: 0 | Q30: 152697.6626 | R30: 0 | S30: 0.0525 | T30: 0 | U30: 138388.0479 | V30: 0 | W30: 0.268899336 | X30: 0.2437002213 | Z30: 2004 | AA30: 17 | AB30: 0.07 | AC30: 0 | AD30: 140689.0368 | AE30: 0 | AF30: 0.035 | AG30: 0 | AH30: 136087.059 | AI30: 0 | AJ30: 0.247752244 | AK30: 0.2396481987 | AQ30: 0.035
A31: 1983 | B31: 1487104.562 | C31: 0.1140217249 | K31: 0.1144350479 | M31: 2005 | N31: 18 | O31: 0.7372555059 | P31: 0 | Q31: 246630.2624 | R31: 0 | S31: 0.06 | T31: 0 | U31: 150483.3787 | V31: 0 | W31: 0.3508008631 | X31: 0.2140438834 | Z31: 2005 | AA31: 18 | AB31: 0.12 | AC31: 0 | AD31: 159001.3058 | AE31: 0 | AF31: 0.035 | AG31: 0 | AH31: 146934.2424 | AI31: 0 | AJ31: 0.2261595749 | AK31: 0.2089956786 | AQ31: 0.035
A32: 1984 | B32: 1371252.975 | C32: 0.1104134237 | K32: 0.1163922886 | M32: 2006 | N32: 19 | O32: 0.1588652482 | P32: 0 | Q32: 203684.8183 | R32: 0 | S32: 0.075 | T32: 0 | U32: 188944.4696 | V32: 0 | W32: 0.2514426406 | X32: 0.2332461337 | Z32: 2006 | AA32: 19 | AB32: 0.34 | AC32: 0 | AD32: 235521.4784 | AE32: 0 | AF32: 0.035 | AG32: 0 | AH32: 181913.9777 | AI32: 0 | AJ32: 0.2907440179 | AK32: 0.2245672078 | AQ32: 0.035
A33: 1985 | B33: 1511634.651 | C33: 0.1147510075 | K33: 0.1154940466 | M33: 2007 | N33: 20 | O33: 0.1967564259 | P33: 0 | Q33: 242362.547 | R33: 0 | S33: 0.0825 | T33: 0 | U33: 219223.7714 | V33: 0 | W33: 0.2723456052 | X33: 0.2463442947 | Z33: 2007 | AA33: 20 | AB33: 0.08 | AC33: 0 | AD33: 218717.4809 | AE33: 0 | AF33: 0.035 | AG33: 0 | AH33: 209604.2525 | AI33: 0 | AJ33: 0.2457753702 | AK33: 0.2355347298 | AQ33: 0.035
A34: 1986 | B34: 1392943.329 | C34: 0.1111107206 | K34: 0.1100399957 | M34: 2008 | N34: 21 | O34: -0.3794425978 | P34: 0 | Q34: 138059.7572 | R34: 0 | S34: 0.08 | T34: 0 | U34: 240275.174 | V34: 0 | W34: 0.154154404 | X34: 0.2682858278 | Z34: 2008 | AA34: 21 | AB34: 0.29 | AC34: 0 | AD34: 286995.3467 | AE34: 0 | AF34: 0.035 | AG34: 0 | AH34: 230263.7084 | AI34: 0 | AJ34: 0.3204525165 | AK34: 0.2571072516 | AQ34: 0.035
A35: 1987 | B35: 1477964.304 | C35: 0.1137470271 | K35: 0.1172556851 | M35: 2009 | N35: 22 | O35: 0.8054182118 | P35: 0 | Q35: 404230.4233 | R35: 0 | S35: 0.06 | T35: 0 | U35: 237332.4064 | V35: 0 | W35: 0.3525919441 | X35: 0.2070143407 | Z35: 2009 | AA35: 22 | AB35: 0.22 | AC35: 0 | AD35: 273156.1658 | AE35: 0 | AF35: 0.035 | AG35: 0 | AH35: 231734.9439 | AI35: 0 | AJ35: 0.2382617883 | AK35: 0.202131927 | AQ35: 0.035
A36: 1988 | B36: 1513373.173 | C36: 0.114802262 | K36: 0.1170212204 | M36: 2010 | N36: 23 | O36: 0.1100017116 | P36: 0 | Q36: 318141.4588 | R36: 0 | S36: 0.0825 | T36: 0 | U36: 310259.0973 | V36: 0 | W36: 0.2495787036 | X36: 0.2433950722 | Z36: 2010 | AA36: 23 | AB36: 0.22 | AC36: 0 | AD36: 349668.4515 | AE36: 0 | AF36: 0.035 | AG36: 0 | AH36: 296644.9568 | AI36: 0 | AJ36: 0.2743113053 | AK36: 0.2327149189 | AQ36: 0.035
K37: 0.1159308631 | M37: 2011 | N37: 24 | O37: -0.1054227705 | P37: 0 | Q37: 285082.5217 | R37: 0 | S37: 0.09 | T37: 0 | U37: 347359.5553 | V37: 0 | W37: 0.2049630886 | X37: 0.2497378194 | Z37: 2011 | AA37: 24 | AB37: 0.34 | AC37: =IF(AF36=start-1+time1,0,IF(Z37=start,cont1*eqper,0)) -> 0 | AD37: 427029.1781 | AE37: =IF(AA37=time1,AD37,0) -> 0 | AF37: 0.04 | AG37: =IF(AF36=start-1+time1,0,IF(Z37=start,cont1*bondper,0)) -> 0 | AH37: 331425.6307 | AI37: =IF(AA37=time1,AH37,0) -> 0 | AJ37: 0.3070171358 | AK37: 0.2382819561 | AQ37: 0.04
K38: 0.114802262 | M38: 2012 | N38: 25 | O38: 0.08222247759 | P38: 0 | Q38: 376314.9685 | R38: 376314.9685 | S38: 0.09 | T38: 0 | U38: 379019.4014 | V38: 379019.4014 | W38: 0.2486597326 | X38: 0.2504467558 | Z38: 2012 | AA38: 25 | AB38: 0.14 | AC38: 0 | AD38: 396405.6125 | AE38: 396405.6125 | AF38: 0.04 | AG38: 0 | AH38: 361633.1903 | AI38: 361633.1903 | AJ38: 0.2619351391 | AK38: 0.2389583725 | AQ38: 0.04

Sheet Permanent portfolio SIP
A1: The Permanent Portfolio Simulator: Indian Edition for SIP investments with annual rebalancing | J1: Permanent portfolio of a SIP investment with annual rebalancing | AA1: Permanent portfolio of a SIP investment with annual rebalancing
A2: Enter no of years (max 32) | D2: 25 | G2: Enter data only in green cells | J2: Year of | K2: Year | L2: Sensex | M2: Annual | N2: invest. From | O2: Total Equity | Q2: FD | R2: Annual | S2: invest. From | T2: Total Debt | V2: Asset Allocation | AA2: Year of | AB2: Year | AC2: Gold | AD2: Annual | AE2: invest. From | AF2: Total Gold | AH2: lid debt | AI2: Annual | AJ2: invest. From | AK2: Total liq debt | AM2: Asset Allocation
A3: Choose a starting year between | D3: 1979 | E3: and | F3: =2012-time1+1 -> 1988 | L3: return | M3: Investment | N3: Previous | O3: Corpus | Q3: return | R3: investment | S3: Previous | T3: Corpus | V3: Equity | W3: Debt | X3: Equity | Y3: Debt | AC3: return | AD3: Investment | AE3: Previous | AF3: Corpus | AH3: return | AI3: investment | AJ3: Previous | AK3: Corpus | AM3: Gold | AN3: liq debt | AO3: Gold | AP3: liq debt
A4: Starting year | C4: 1987 | J4: return | N4: year | S4: year | V4: Prior investment | X4: After investment | AA4: return | AE4: year | AJ4: year | AM4: Prior investment | AO4: After investment | AS4: =-1E-300 -> -1e-300
A5: monthly contribution in 1st year | D5: 1000 | J5: 1979 | K5: =IF(Q4=start-1+time1,0,IF(K4<>0,K4+1,IF(J5=start,1,0))) -> 0 | L5: 0.29 | M5: =IF(K5=0,0,IF(Q4=start-1+time1,0,IF(M4<>0,M4*(1+inca),IF(J5=start,12*cont1*eqper,0)))) -> 0 | N5: =IF(K5=1,0,IF(K5=0,0,eqper*(O4+T4+AF4+AK4))) -> 0 | O5: =IF(K5=0,0,(M5+N5)*(1+L5)) -> 0 | P5: =IF(K5=time1,O5,0) -> 0 | Q5: 0.07 | R5: =IF(K5=0,0,IF(Q4=start-1+time1,0,IF(R4<>0,R4*(1+inca),IF(J5=start,12*cont1*bondper,0)))) -> 0 | S5: =IF(K5=1,0,IF(K5=0,0,bondper*(O4+T4+AF4+AK4))) -> 0 | T5: =IF(K5=0,0,(R5+S5)*(1+Q5)) -> 0 | U5: =IF(K5=time1,T5,0) -> 0 | V5: =IF(K5=0,0,(M5+N5)/(M5+N5+R5+S5+AD5+AE5+AI5+AJ5)) -> 0 | W5: =IF(K5=0,0,(R5+S5)/(M5+N5+R5+S5+AD5+AE5+AI5+AJ5)) -> 0 | X5: =IF(K5=0,0,O5/(O5+T5+AF5+AK5)) -> 0 | Y5: =IF(K5=0,0,T5/(O5+T5+AF5+AK5)) -> 0 | AA5: 1979 | AB5: =IF(AH4=start-1+time1,0,IF(AB4<>0,AB4+1,IF(AA5=start,1,0))) -> 0 | AC5: 0.46 | AD5: =IF(AB5=0,0,IF(AH4=start-1+time1,0,IF(AD4<>0,AD4*(1+inca),IF(AA5=start,12*cont1*gper1,0)))) -> 0 | AE5: =IF(AB5=1,0,IF(AB5=0,0,gper1*(O4+T4+AF4+AK4))) -> 0 | AF5: =IF(AB5=0,0,(AD5+AE5)*(1+AC5)) -> 0 | AG5: =IF(AB5=time1,AF5,0) -> 0 | AH5: =AZ5+liqpl1 -> 0.07 | AI5: =IF(AB5=0,0,IF(AH4=start-1+time1,0,IF(AI4<>0,AI4*(1+inca),IF(AA5=start,12*cont1*lper1,0)))) -> 0 | AJ5: =IF(AB5=1,0,IF(AB5=0,0,lper1*(O4+T4+AF4+AK4))) -> 0 | AK5: =IF(AB5=0,0,(AI5+AJ5)*(1+AH5)) -> 0 | AL5: =IF(AB5=time1,AK5,0) -> 0 | AM5: =IF(AB5=0,0,(AD5+AE5)/(M5+N5+R5+S5+AD5+AE5+AI5+AJ5)) -> 0 | AN5: =IF(AB5=0,0,(AI5+AJ5)/(M5+N5+R5+S5+AD5+AE5+AI5+AJ5)) -> 0 | AO5: =IF(AB5=0,0,AF5/(O5+T5+AF5+AK5)) -> 0 | AP5: =IF(AB5=0,0,AK5/(O5+T5+AF5+AK5)) -> 0 | AR5: =IF(Q4=start-1+time1,0,IF(K4<>0,K4+1,IF(J5=start,1,0))) -> 0 | AS5: =IF(AR4=time1,totalcorpus,IF(K5=0,-1E-300,IF(Q4=start-1+time1,-1E-300,IF(AS4<>-1E-300,-ABS(AS4*(1+inca)),IF(J5=start,-12*cont1,-1E-300))))) -> -1e-300 | AT5: =IF(AR4=time1,DATE(YEAR(AT4)+1,1,1),IF(Q4=start-1+time1,0,IF(K4<>0,DATE(YEAR(AT4)+1,1,1),IF(J5=start,DATE(start,1,1),0)))) -> 00:00:00 | AU5: =start-1+time1 -> 2011 | AZ5: 0.05
A6: % increase or | B6: decrease each year | J6: =J5+1 -> 1980 | K6: =IF(J5=start-1+time1,0,IF(K5<>0,K5+1,IF(J6=start,1,0))) -> 0 | L6: 0.3410852713 | M6: 0 | N6: 0 | O6: =IF(K6=0,0,(M6+N6)*(1+L6)) -> 0 | P6: 0 | Q6: 0.075 | R6: 0 | S6: 0 | T6: =IF(K6=0,0,(R6+S6)*(1+Q6)) -> 0 | U6: 0 | V6: =IF(K6=0,0,(M6+N6)/(M6+N6+R6+S6+AD6+AE6+AI6+AJ6)) -> 0 | W6: =IF(K6=0,0,(R6+S6)/(M6+N6+R6+S6+AD6+AE6+AI6+AJ6)) -> 0 | X6: =IF(K6=0,0,O6/(O6+T6+AF6+AK6)) -> 0 | Y6: =IF(K6=0,0,T6/(O6+T6+AF6+AK6)) -> 0 | AA6: =AA5+1 -> 1980 | AB6: =IF(AA5=start-1+time1,0,IF(AB5<>0,AB5+1,IF(AA6=start,1,0))) -> 0 | AC6: 0.31 | AD6: 0 | AE6: 0 | AF6: =IF(AB6=0,0,(AD6+AE6)*(1+AC6)) -> 0 | AG6: 0 | AH6: 0.07 | AI6: 0 | AJ6: 0 | AK6: =IF(AB6=0,0,(AI6+AJ6)*(1+AH6)) -> 0 | AL6: 0 | AM6: =IF(AB6=0,0,(AD6+AE6)/(M6+N6+R6+S6+AD6+AE6+AI6+AJ6)) -> 0 | AN6: =IF(AB6=0,0,(AI6+AJ6)/(M6+N6+R6+S6+AD6+AE6+AI6+AJ6)) -> 0 | AO6: =IF(AB6=0,0,AF6/(O6+T6+AF6+AK6)) -> 0 | AP6: =IF(AB6=0,0,AK6/(O6+T6+AF6+AK6)) -> 0 | AR6: =IF(J5=start-1+time1,0,IF(K5<>0,K5+1,IF(J6=start,1,0))) -> 0 | AS6: -1e-300 | AT6: 00:00:00 | AZ6: 0.05
A7: The Permanent portfolio assest allocation | J7: =J6+1 -> 1981 | K7: 0 | L7: 0.2601156069 | M7: 0 | N7: 0 | O7: 0 | P7: 0 | Q7: 0.08 | R7: 0 | S7: 0 | T7: 0 | U7: 0 | V7: 0 | W7: 0 | X7: 0 | Y7: 0 | AA7: =AA6+1 -> 1981 | AB7: 0 | AC7: 0.13 | AD7: 0 | AE7: 0 | AF7: 0 | AG7: 0 | AH7: 0.07 | AI7: 0 | AJ7: 0 | AK7: 0 | AL7: 0 | AM7: 0 | AN7: 0 | AO7: 0 | AP7: 0 | AR7: 0 | AS7: -1e-300 | AT7: 00:00:00 | AZ7: 0.05
A8: % in equities | B8: 0.25 | C8: % in long term debt (FDs) | F8: 0.25 | J8: 1982 | K8: 0 | L8: -0.02752293578 | M8: 0 | N8: 0 | O8: 0 | P8: 0 | Q8: 0.08 | R8: 0 | S8: 0 | T8: 0 | U8: 0 | V8: 0 | W8: 0 | X8: 0 | Y8: 0 | AA8: 1982 | AB8: 0 | AC8: 0 | AD8: 0 | AE8: 0 | AF8: 0 | AG8: 0 | AH8: 0.07 | AI8: 0 | AJ8: 0 | AK8: 0 | AL8: 0 | AM8: 0 | AN8: 0 | AO8: 0 | AP8: 0 | AR8: 0 | AS8: -1e-300 | AT8: 00:00:00 | AZ8: 0.05
A9: % in gold | B9: 0.25 | C9: % in short term (liquid) debt (SB acc!) | F9: 0.25 | J9: 1983 | K9: 0 | L9: 0.1556603774 | M9: 0 | N9: 0 | O9: 0 | P9: =IF(K9=time1,O9,0) -> 0 | Q9: 0.08 | R9: 0 | S9: 0 | T9: 0 | U9: 0 | V9: 0 | W9: 0 | X9: 0 | Y9: 0 | AA9: 1983 | AB9: 0 | AC9: 0.08 | AD9: 0 | AE9: 0 | AF9: 0 | AG9: =IF(AB9=time1,AF9,0) -> 0 | AH9: 0.07 | AI9: 0 | AJ9: 0 | AK9: 0 | AL9: 0 | AM9: 0 | AN9: 0 | AO9: 0 | AP9: 0 | AR9: 0 | AS9: -1e-300 | AT9: 00:00:00 | AU9: 1 | AZ9: 0.05
A10: Total must be 100% other wise you will get weird results! | J10: 1984 | K10: 0 | L10: 0.4448979592 | M10: 0 | N10: 0 | O10: 0 | P10: =IF(K10=time1,O10,0) -> 0 | Q10: 0.08 | R10: 0 | S10: 0 | T10: 0 | U10: 0 | V10: 0 | W10: 0 | X10: 0 | Y10: 0 | AA10: 1984 | AB10: 0 | AC10: 0.07 | AD10: 0 | AE10: 0 | AF10: 0 | AG10: =IF(AB10=time1,AF10,0) -> 0 | AH10: 0.07 | AI10: 0 | AJ10: 0 | AK10: 0 | AL10: 0 | AM10: 0 | AN10: 0 | AO10: 0 | AP10: 0 | AR10: 0 | AS10: -1e-300 | AT10: 00:00:00 | AU10: 2 | AZ10: 0.05
A11: If you wish enhance SB acc returns by a small amount to make it resemble a liquid fund | J11: 1985 | K11: 0 | L11: 0.6214689266 | M11: 0 | N11: 0 | O11: 0 | P11: =IF(K11=time1,O11,0) -> 0 | Q11: 0.085 | R11: 0 | S11: 0 | T11: 0 | U11: 0 | V11: 0 | W11: 0 | X11: 0 | Y11: 0 | AA11: 1985 | AB11: 0 | AC11: 0.07 | AD11: 0 | AE11: 0 | AF11: 0 | AG11: =IF(AB11=time1,AF11,0) -> 0 | AH11: 0.07 | AI11: 0 | AJ11: 0 | AK11: 0 | AL11: 0 | AM11: 0 | AN11: 0 | AO11: 0 | AP11: 0 | AR11: 0 | AS11: -1e-300 | AT11: 00:00:00 | AU11: 3 | AZ11: 0.05
A12: enter the incremental return here | C12: 0.02 | J12: 1986 | K12: 0 | L12: -0.1114982578 | M12: 0 | N12: 0 | O12: 0 | P12: 0 | Q12: 0.085 | R12: 0 | S12: 0 | T12: 0 | U12: 0 | V12: 0 | W12: 0 | X12: 0 | Y12: 0 | AA12: 1986 | AB12: 0 | AC12: 0.09 | AD12: 0 | AE12: 0 | AF12: 0 | AG12: 0 | AH12: 0.07 | AI12: 0 | AJ12: 0 | AK12: 0 | AL12: 0 | AM12: 0 | AN12: 0 | AO12: 0 | AP12: 0 | AR12: 0 | AS12: -1e-300 | AT12: 00:00:00 | AU12: 4 | AZ12: 0.05
A13: Results | J13: 1987 | K13: 1 | L13: -0.2196078431 | M13: 3000 | N13: 0 | O13: 2341.176471 | P13: 0 | Q13: 0.09 | R13: 3000 | S13: 0 | T13: 3270 | U13: 0 | V13: 0.25 | W13: 0.25 | X13: 0.182744846 | Y13: 0.2552458791 | AA13: 1987 | AB13: 1 | AC13: 0.33 | AD13: 3000 | AE13: 0 | AF13: 3990 | AG13: 0 | AH13: 0.07 | AI13: 3000 | AJ13: 0 | AK13: 3210 | AL13: 0 | AM13: 0.25 | AN13: 0.25 | AO13: 0.3114468066 | AP13: 0.2505624684 | AR13: 1 | AS13: -12000 | AT13: 1987-01-01 | AU13: 5 | AZ13: 0.05
A14: Start Year | B14: Equity corpus | C14: Debt Corpus | D14: Gold Corpus | E14: liq debt corpus | F14: Total corpus | J14: 1988 | K14: 2 | L14: 0.7939698492 | M14: 3000 | N14: 3202.794118 | O14: 11127.62563 | P14: 0 | Q14: 0.09 | R14: 3000 | S14: 3202.794118 | T14: 6761.045588 | U14: 0 | V14: 0.25 | W14: 0.25 | X14: 0.3599479739 | Y14: 0.2187011625 | AA14: 1988 | AB14: 2 | AC14: 0.03 | AD14: 3000 | AE14: 3202.794118 | AF14: 6388.877941 | AG14: 0 | AH14: 0.07 | AI14: 3000 | AJ14: 3202.794118 | AK14: 6636.989706 | AL14: 0 | AM14: 0.25 | AN14: 0.25 | AO14: 0.2066625664 | AP14: 0.2146882972 | AR14: 2 | AS14: -12000 | AT14: 1988-01-01 | AU14: 6 | AZ14: 0.05
A15: =start -> 1987 | B15: =MAX(P3:P58) -> 325282.8614 | C15: =MAX(U3:U58) -> 396341.7659 | D15: =MAX(AG3:AG58) -> 487245.8407 | E15: =MAX(AL3:AL38) -> 385433.2769 | F15: =B15+C15+D15+E15 -> 1594303.745 | J15: 1989 | K15: 3 | L15: 0.09383753501 | M15: 3000 | N15: 7728.634716 | O15: 11735.38335 | P15: 0 | Q15: 0.09 | R15: 3000 | S15: 7728.634716 | T15: 11694.21184 | U15: 0 | V15: 0.25 | W15: 0.25 | X15: 0.2559380243 | Y15: 0.2550401112 | AA15: 1989 | AB15: 3 | AC15: 0.02 | AD15: 3000 | AE15: 7728.634716 | AF15: 10943.20741 | AG15: 0 | AH15: 0.07 | AI15: 3000 | AJ15: 7728.634716 | AK15: 11479.63915 | AL15: 0 | AM15: 0.25 | AN15: 0.25 | AO15: 0.2386613884 | AP15: 0.2503604761 | AR15: 3 | AS15: -12000 | AT15: 1989-01-01 | AU15: 7 | AZ15: 0.05
B16: % Equity | C16: %Debt | D16: % Gold | E16: %liq debt | F16: CAGR | J16: 1990 | K16: 4 | L16: 0.4955185659 | M16: 3000 | N16: 11463.11044 | O16: 21629.85018 | P16: 0 | Q16: 0.09 | R16: 3000 | S16: 11463.11044 | T16: 15764.79038 | U16: 0 | V16: 0.25 | W16: 0.25 | X16: 0.3164771326 | Y16: 0.2306625156 | AA16: 1990 | AB16: 4 | AC16: 0.07 | AD16: 3000 | AE16: 11463.11044 | AF16: 15475.52817 | AG16: 0 | AH16: 0.07 | AI16: 3000 | AJ16: 11463.11044 | AK16: 15475.52817 | AL16: 0 | AM16: 0.25 | AN16: 0.25 | AO16: 0.2264301759 | AP16: 0.2264301759 | AR16: 4 | AS16: -12000 | AT16: 1990-01-01 | AU16: 8 | AZ16: 0.05
B17: =B15/F15 -> 0.2040281611 | C17: =C15/F15 -> 0.2485986545 | D17: =D15/F15 -> 0.3056166946 | E17: =E15/F15 -> 0.2417564897 | F17: =XIRR(AS5:AS39,AT5:AT39) -> 0.1127190053 | J17: 1991 | K17: 5 | L17: 2.668664384 | M17: 3000 | N17: 17086.42422 | O17: 73690.34914 | P17: 0 | Q17: 0.12 | R17: 3000 | S17: 17086.42422 | T17: 22496.79513 | U17: 0 | V17: 0.25 | W17: 0.25 | X17: 0.5160834983 | Y17: 0.1575542098 | AA17: 1991 | AB17: 5 | AC17: 0.25 | AD17: 3000 | AE17: 17086.42422 | AF17: 25108.03028 | AG17: 0 | AH17: 0.07 | AI17: 3000 | AJ17: 17086.42422 | AK17: 21492.47392 | AL17: 0 | AM17: 0.25 | AN17: 0.25 | AO17: 0.1758417521 | AP17: 0.1505205398 | AR17: 5 | AS17: -12000 | AT17: 1991-01-01 | AU17: 9 | AZ17: 0.05
B18: Final asset allocation | J18: 1992 | K18: 6 | L18: -0.4676779463 | M18: 3000 | N18: 35696.91212 | O18: 20599.21973 | P18: 0 | Q18: 0.11 | R18: 3000 | S18: 35696.91212 | T18: 42953.57245 | U18: 0 | V18: 0.25 | W18: 0.25 | X18: 0.1449551662 | Y18: 0.3022610718 | AA18: 1992 | AB18: 6 | AC18: -0.05 | AD18: 3000 | AE18: 35696.91212 | AF18: 36762.06651 | AG18: 0 | AH18: 0.08 | AI18: 3000 | AJ18: 35696.91212 | AK18: 41792.66509 | AL18: 0 | AM18: 0.25 | AN18: 0.25 | AO18: 0.2586919083 | AP18: 0.2940918537 | AR18: 6 | AS18: -12000 | AT18: 1992-01-01 | AU18: 10 | AZ18: 0.06
A19: Click on the macro to find out the % difference | J19: 1993 | K19: 7 | L19: 0.6567295046 | M19: 3000 | N19: 35526.88094 | O19: 63828.62038 | P19: 0 | Q19: 0.1 | R19: 3000 | S19: 35526.88094 | T19: 42379.56904 | U19: 0 | V19: 0.25 | W19: 0.25 | X19: 0.3355925219 | Y19: 0.2228195811 | AA19: 1993 | AB19: 7 | AC19: 0.1 | AD19: 3000 | AE19: 35526.88094 | AF19: 42379.56904 | AG19: 0 | AH19: 0.08 | AI19: 3000 | AJ19: 35526.88094 | AK19: 41609.03142 | AL19: 0 | AM19: 0.25 | AN19: 0.25 | AO19: 0.2228195811 | AP19: 0.2187683159 | AR19: 7 | AS19: -12000 | AT19: 1993-01-01 | AU19: 11 | AZ19: 0.06
A20: between the two corpuses for all possible | J20: 1994 | K20: 8 | L20: -0.1370732998 | M20: 3000 | N20: 47549.19747 | O20: 43620.25217 | P20: 0 | Q20: 0.11 | R20: 3000 | S20: 47549.19747 | T20: 56109.60919 | U20: 0 | V20: 0.25 | W20: 0.25 | X20: 0.2121293631 | Y20: 0.2728662736 | AA20: 1994 | AB20: 8 | AC20: 0.03 | AD20: 3000 | AE20: 47549.19747 | AF20: 52065.67339 | AG20: 0 | AH20: 0.065 | AI20: 3000 | AJ20: 47549.19747 | AK20: 53834.8953 | AL20: 0 | AM20: 0.25 | AN20: 0.25 | AO20: 0.2532002359 | AP20: 0.2618041274 | AR20: 8 | AS20: -12000 | AT20: 1994-01-01 | AU20: 12 | AZ20: 0.045
A21: investment durations between | J21: 1995 | K21: 9 | L21: 0.03250536645 | M21: 3000 | N21: 51407.60751 | O21: 56176.14673 | P21: 0 | Q21: 0.12 | R21: 3000 | S21: 51407.60751 | T21: 60936.52042 | U21: 0 | V21: 0.25 | W21: 0.25 | X21: 0.2413802621 | Y21: 0.2618348556 | AA21: 1995 | AB21: 9 | AC21: 0.06 | AD21: 3000 | AE21: 51407.60751 | AF21: 57672.06396 | AG21: 0 | AH21: 0.065 | AI21: 3000 | AJ21: 51407.60751 | AK21: 57944.102 | AL21: 0 | AM21: 0.25 | AN21: 0.25 | AO21: 0.2478079883 | AP21: 0.248976894 | AR21: 9 | AS21: -12000 | AT21: 1995-01-01 | AU21: 13 | AZ21: 0.045
A22: =D3 -> 1979 | B22: and | C22: =F3 -> 1988 | J22: 1996 | K22: 10 | L22: -0.001782001782 | M22: 3000 | N22: 58182.20828 | O22: 61073.18148 | P22: 0 | Q22: 0.11 | R22: 3000 | S22: 58182.20828 | T22: 67912.25119 | U22: 0 | V22: 0.25 | W22: 0.25 | X22: 0.2380553548 | Y22: 0.2647131631 | AA22: 1996 | AB22: 10 | AC22: 0.02 | AD22: 3000 | AE22: 58182.20828 | AF22: 62405.85244 | AG22: 0 | AH22: 0.065 | AI22: 3000 | AJ22: 58182.20828 | AK22: 65159.05182 | AL22: 0 | AM22: 0.25 | AN22: 0.25 | AO22: 0.2432499337 | AP22: 0.2539815484 | AR22: 10 | AS22: -12000 | AT22: 1996-01-01 | AU22: 14 | AZ22: 0.045
J23: 1997 | K23: 11 | L23: 0.1582862243 | M23: 3000 | N23: 64137.58423 | O23: 77764.53895 | P23: 0 | Q23: 0.105 | R23: 3000 | S23: 64137.58423 | T23: 74187.03058 | U23: 0 | V23: 0.25 | W23: 0.25 | X23: 0.2765537411 | Y23: 0.2638310614 | AA23: 1997 | AB23: 11 | AC23: -0.14 | AD23: 3000 | AE23: 64137.58423 | AF23: 57738.32244 | AG23: 0 | AH23: 0.065 | AI23: 3000 | AJ23: 64137.58423 | AK23: 71501.52721 | AL23: 0 | AM23: 0.25 | AN23: 0.25 | AO23: 0.2053345817 | AP23: 0.2542806157 | AR23: 11 | AS23: -12000 | AT23: 1997-01-01 | AU23: 15 | AZ23: 0.045
J24: 1998 | K24: 12 | L24: -0.03930131004 | M24: 3000 | N24: 70297.85479 | O24: 70417.15308 | P24: 0 | Q24: 0.09 | R24: 3000 | S24: 70297.85479 | T24: 79894.66172 | U24: 0 | V24: 0.25 | W24: 0.25 | X24: 0.2345628335 | Y24: 0.2661328585 | AA24: 1998 | AB24: 12 | AC24: -0.02 | AD24: 3000 | AE24: 70297.85479 | AF24: 71831.8977 | AG24: 0 | AH24: 0.065 | AI24: 3000 | AJ24: 70297.85479 | AK24: 78062.21535 | AL24: 0 | AM24: 0.25 | AN24: 0.25 | AO24: 0.2392754141 | AP24: 0.2600288939 | AR24: 12 | AS24: -12000 | AT24: 1998-01-01 | AZ24: 0.045
A25: Start Year | B25: CAGR | C25: For a duration of | E25: =time1 -> 25 | F25: years | J25: 1999 | K25: 13 | L25: 0.3371657754 | M25: 3000 | N25: 75051.48196 | O25: 104367.7704 | P25: 0 | Q25: 0.085 | R25: 3000 | S25: 75051.48196 | T25: 84685.85793 | U25: 0 | V25: 0.25 | W25: 0.25 | X25: 0.296018752 | Y25: 0.2401948598 | AA25: 1999 | AB25: 13 | AC25: 0.03 | AD25: 3000 | AE25: 75051.48196 | AF25: 80393.02642 | AG25: 0 | AH25: 0.065 | AI25: 3000 | AJ25: 75051.48196 | AK25: 83124.82829 | AL25: 0 | AM25: 0.25 | AN25: 0.25 | AO25: 0.2280190835 | AP25: 0.2357673048 | AR25: 13 | AS25: -12000 | AT25: 1999-01-01 | AZ25: 0.045
A26: 1979 | B26: 0.1098653376 | C26: the average CAGR is | E26: =SUM(B26:B60)/(C22-A22+1) -> 0.1117468572 | J26: 2000 | K26: 14 | L26: -0.2793441312 | M26: 3000 | N26: 88142.87076 | O26: 65682.64472 | P26: 0 | Q26: 0.085 | R26: 3000 | S26: 88142.87076 | T26: 98890.01478 | U26: 0 | V26: 0.25 | W26: 0.25 | X26: 0.1854656957 | Y26: 0.2792321391 | AA26: 2000 | AB26: 14 | AC26: 0.02 | AD26: 3000 | AE26: 88142.87076 | AF26: 92965.72818 | AG26: 0 | AH26: 0.06 | AI26: 3000 | AJ26: 88142.87076 | AK26: 96611.44301 | AL26: 0 | AM26: 0.25 | AN26: 0.25 | AO26: 0.2625039464 | AP26: 0.2727982188 | AR26: 14 | AS26: -12000 | AT26: 2000-01-01 | AZ26: 0.04
A27: 1980 | B27: 0.106768626 | C27: Variation in the average CAGR is | F27: =STDEV(B26:B60) -> 0.00303575267 | J27: 2001 | K27: 15 | L27: -0.03745837958 | M27: 3000 | N27: 88537.45767 | O27: 88108.61283 | P27: 0 | Q27: 0.075 | R27: 3000 | S27: 88537.45767 | T27: 98402.76699 | U27: 0 | V27: 0.25 | W27: 0.25 | X27: 0.2337660937 | Y27: 0.2610781139 | AA27: 2001 | AB27: 15 | AC27: 0.02 | AD27: 3000 | AE27: 88537.45767 | AF27: 93368.20682 | AG27: 0 | AH27: 0.06 | AI27: 3000 | AJ27: 88537.45767 | AK27: 97029.70513 | AL27: 0 | AM27: 0.25 | AN27: 0.25 | AO27: 0.247720629 | AP27: 0.2574351634 | AR27: 15 | AS27: -12000 | AT27: 2001-01-01 | AZ27: 0.04
A28: 1981 | B28: 0.1127901852 | J28: 2002 | K28: 16 | L28: -0.1210723551 | M28: 3000 | N28: 94227.32294 | O28: 85455.78197 | P28: 0 | Q28: 0.0425 | R28: 3000 | S28: 94227.32294 | T28: 101359.4842 | U28: 0 | V28: 0.25 | W28: 0.25 | X28: 0.2122281784 | Y28: 0.251724789 | AA28: 2002 | AB28: 16 | AC28: 0.16 | AD28: 3000 | AE28: 94227.32294 | AF28: 112783.6946 | AG28: 0 | AH28: 0.06 | AI28: 3000 | AJ28: 94227.32294 | AK28: 103060.9623 | AL28: 0 | AM28: 0.25 | AN28: 0.25 | AO28: 0.2800966477 | AP28: 0.255950385 | AR28: 16 | AS28: -12000 | AT28: 2002-01-01 | AZ28: 0.04
A29: 1982 | B29: 0.114815098 | J29: 2003 | K29: 17 | L29: 0.8337159724 | M29: 3000 | N29: 100664.9808 | O29: 190092.131 | P29: 0 | Q29: 0.04 | R29: 3000 | S29: 100664.9808 | T29: 107811.58 | U29: 0 | V29: 0.25 | W29: 0.25 | X29: 0.3668374004 | Y29: 0.2080534293 | AA29: 2003 | AB29: 17 | AC29: 0.07 | AD29: 3000 | AE29: 100664.9808 | AF29: 110921.5294 | AG29: 0 | AH29: 0.055 | AI29: 3000 | AJ29: 100664.9808 | AK29: 109366.5547 | AL29: 0 | AM29: 0.25 | AN29: 0.25 | AO29: 0.2140549705 | AP29: 0.2110541999 | AR29: 17 | AS29: -12000 | AT29: 2003-01-01 | AZ29: 0.035
A30: 1983 | B30: 0.1139983833 | J30: 2004 | K30: 18 | L30: 0.1613307101 | M30: 3000 | N30: 129547.9488 | O30: 153932.0035 | P30: 0 | Q30: 0.0525 | R30: 3000 | S30: 129547.9488 | T30: 139506.7161 | U30: 0 | V30: 0.25 | W30: 0.25 | X30: 0.2676598346 | Y30: 0.2425768762 | AA30: 2004 | AB30: 18 | AC30: 0.07 | AD30: 3000 | AE30: 129547.9488 | AF30: 141826.3052 | AG30: 0 | AH30: 0.055 | AI30: 3000 | AJ30: 129547.9488 | AK30: 139838.086 | AL30: 0 | AM30: 0.25 | AN30: 0.25 | AO30: 0.2466102209 | AP30: 0.2431530683 | AR30: 18 | AS30: -12000 | AT30: 2004-01-01 | AZ30: 0.035
A31: 1984 | B31: 0.107094878 | J31: 2005 | K31: 19 | L31: 0.7372555059 | M31: 3000 | N31: 143775.7777 | O31: 254987.0279 | P31: 0 | Q31: 0.06 | R31: 3000 | S31: 143775.7777 | T31: 155582.3244 | U31: 0 | V31: 0.25 | W31: 0.25 | X31: 0.34938983 | Y31: 0.2131829305 | AA31: 2005 | AB31: 19 | AC31: 0.12 | AD31: 3000 | AE31: 143775.7777 | AF31: 164388.871 | AG31: 0 | AH31: 0.055 | AI31: 3000 | AJ31: 143775.7777 | AK31: 154848.4455 | AL31: 0 | AM31: 0.25 | AN31: 0.25 | AO31: 0.2252498888 | AP31: 0.2121773506 | AR31: 19 | AS31: -12000 | AT31: 2005-01-01 | AZ31: 0.035
A32: 1985 | B32: 0.11483652 | J32: 2006 | K32: 20 | L32: 0.1588652482 | M32: 3000 | N32: 182451.6672 | O32: 214913.4923 | P32: 0 | Q32: 0.075 | R32: 3000 | S32: 182451.6672 | T32: 199360.5422 | U32: 0 | V32: 0.25 | W32: 0.25 | X32: 0.250356229 | Y32: 0.232238344 | AA32: 2006 | AB32: 20 | AC32: 0.34 | AD32: 3000 | AE32: 182451.6672 | AF32: 248505.234 | AG32: 0 | AH32: 0.055 | AI32: 3000 | AJ32: 182451.6672 | AK32: 195651.5089 | AL32: 0 | AM32: 0.25 | AN32: 0.25 | AO32: 0.2894877963 | AP32: 0.2279176307 | AR32: 20 | AS32: -12000 | AT32: 2006-01-01 | AZ32: 0.035
A33: 1986 | B33: 0.1140685618 | J33: 2007 | K33: 21 | L33: 0.1967564259 | M33: 3000 | N33: 214607.6944 | O33: 260423.4066 | P33: 0 | Q33: 0.0825 | R33: 3000 | S33: 214607.6944 | T33: 235560.3292 | U33: 0 | V33: 0.25 | W33: 0.25 | X33: 0.2711116688 | Y33: 0.2452281643 | AA33: 2007 | AB33: 21 | AC33: 0.08 | AD33: 3000 | AE33: 214607.6944 | AF33: 235016.3099 | AG33: 0 | AH33: 0.055 | AI33: 3000 | AJ33: 214607.6944 | AK33: 229576.1176 | AL33: 0 | AM33: 0.25 | AN33: 0.25 | AO33: 0.2446618175 | AP33: 0.2389983495 | AR33: 21 | AS33: -12000 | AT33: 2007-01-01 | AZ33: 0.035
A34: 1987 | B34: 0.1127190053 | J34: 2008 | K34: 22 | L34: -0.3794425978 | M34: 3000 | N34: 240144.0408 | O34: 150884.8343 | P34: 0 | Q34: 0.08 | R34: 3000 | S34: 240144.0408 | T34: 262595.5641 | U34: 0 | V34: 0.25 | W34: 0.25 | X34: 0.1533923117 | Y34: 0.2669595046 | AA34: 2008 | AB34: 22 | AC34: 0.29 | AD34: 3000 | AE34: 240144.0408 | AF34: 313655.8126 | AG34: 0 | AH34: 0.055 | AI34: 3000 | AJ34: 240144.0408 | AK34: 256516.963 | AL34: 0 | AM34: 0.25 | AN34: 0.25 | AO34: 0.3188682972 | AP34: 0.2607798865 | AR34: 22 | AS34: -12000 | AT34: 2008-01-01 | AZ34: 0.035
A35: 1988 | B35: 0.1105119765 | J35: 2009 | K35: 23 | L35: 0.8054182118 | M35: 3000 | N35: 245913.2935 | O35: 449392.5933 | P35: 0 | Q35: 0.06 | R35: 3000 | S35: 245913.2935 | T35: 263848.0911 | U35: 0 | V35: 0.25 | W35: 0.25 | X35: 0.3512201026 | Y35: 0.2062089029 | AA35: 2009 | AB35: 23 | AC35: 0.22 | AD35: 3000 | AE35: 245913.2935 | AF35: 303674.2181 | AG35: 0 | AH35: 0.055 | AI35: 3000 | AJ35: 245913.2935 | AK35: 262603.5247 | AL35: 0 | AM35: 0.25 | AN35: 0.25 | AO35: 0.2373347751 | AP35: 0.2052362194 | AR35: 23 | AS35: -12000 | AT35: 2009-01-01 | AZ35: 0.035
J36: 2010 | K36: 24 | L36: 0.1100017116 | M36: 3000 | N36: 319879.6068 | O36: 358396.9162 | P36: 0 | Q36: 0.0825 | R36: 3000 | S36: 319879.6068 | T36: 349517.1743 | U36: 0 | V36: 0.25 | W36: 0.25 | X36: 0.2484613959 | Y36: 0.2423054472 | AA36: 2010 | AB36: 24 | AC36: 0.22 | AD36: 3000 | AE36: 319879.6068 | AF36: 393913.1203 | AG36: 0 | AH36: 0.055 | AI36: 3000 | AJ36: 319879.6068 | AK36: 340637.9852 | AL36: 0 | AM36: 0.25 | AN36: 0.25 | AO36: 0.2730832753 | AP36: 0.2361498815 | AR36: 24 | AS36: -12000 | AT36: 2010-01-01 | AZ36: 0.035
J37: 2011 | K37: =IF(J36=start-1+time1,0,IF(K36<>0,K36+1,IF(J37=start,1,0))) -> 25 | L37: -0.1054227705 | M37: =IF(K37=0,0,IF(Q36=start-1+time1,0,IF(M36<>0,M36*(1+inca),IF(J37=start,12*cont1*eqper,0)))) -> 3000 | N37: 360616.299 | O37: =IF(K37=0,0,(M37+N37)*(1+L37)) -> 325282.8614 | P37: =IF(K37=time1,O37,0) -> 325282.8614 | Q37: 0.09 | R37: 3000 | S37: 360616.299 | T37: =IF(K37=0,0,(R37+S37)*(1+Q37)) -> 396341.7659 | U37: =IF(K37=time1,T37,0) -> 396341.7659 | V37: 0.25 | W37: 0.25 | X37: 0.2040281611 | Y37: 0.2485986545 | AA37: 2011 | AB37: =IF(AA36=start-1+time1,0,IF(AB36<>0,AB36+1,IF(AA37=start,1,0))) -> 25 | AC37: 0.34 | AD37: 3000 | AE37: 360616.299 | AF37: =IF(AB37=0,0,(AD37+AE37)*(1+AC37)) -> 487245.8407 | AG37: =IF(AB37=time1,AF37,0) -> 487245.8407 | AH37: 0.06 | AI37: 3000 | AJ37: 360616.299 | AK37: =IF(AB37=0,0,(AI37+AJ37)*(1+AH37)) -> 385433.2769 | AL37: =IF(AB37=time1,AK37,0) -> 385433.2769 | AM37: 0.25 | AN37: 0.25 | AO37: 0.3056166946 | AP37: 0.2417564897 | AR37: 25 | AS37: -12000 | AT37: 2011-01-01 | AZ37: 0.04
J38: 2012 | K38: 0 | L38: 0.08222247759 | M38: 0 | N38: 0 | O38: 0 | P38: 0 | Q38: 0.09 | R38: 0 | S38: 0 | T38: 0 | U38: 0 | V38: 0 | W38: 0 | X38: 0 | Y38: 0 | AA38: 2012 | AB38: 0 | AC38: 0.14 | AD38: 0 | AE38: 0 | AF38: 0 | AG38: 0 | AH38: 0.06 | AI38: 0 | AJ38: 0 | AK38: 0 | AL38: 0 | AM38: 0 | AN38: 0 | AO38: 0 | AP38: 0 | AR38: 0 | AS38: 1594303.745 | AT38: 2012-01-01 | AZ38: 0.04
AR39: 0 | AS39: -1e-300 | AT39: 00:00:00
A69: % in equities | C69: % in FDs
